bitfinex/quotes_ETHUSD_20220212
["timestamp","ask_amount","ask_price","bid_price","bid_amount"]
[1644647023742,0.41270662,2916.7,2916.0,1.03623797]
[1644647023945,2.12796162,2916.7,2916.3,0.00227531]
[1644647024143,0.41270662,2916.6,2916.3,0.00227531]
[1644647024843,0.41270662,2916.6,2915.9,1.2268]
[1644647025044,0.72058579,2916.2,2915.9,1.25713058]
[1644647025245,0.41170662,2916.1,2915.9,1.25713058]
[1644647025444,0.41170662,2916.1,2915.9,0.03033058]
[1644647025744,0.41170662,2916.1,2915.9,0.01250033]
[1644647026144,0.41170662,2916.1,2915.5,5.3857]
[1644647026346,0.41170662,2916.1,2915.7,1.03389009]
[1644647026591,0.41270662,2916.1,2915.5,5.2144]
[1644647026992,1.41270662,2916.1,2915.5,5.2144]
[1644647027192,0.41270662,2916.0,2915.5,1.2377]
[1644647027393,4.12058579,2916.2,2915.5,1.2377]
[1644647027394,0.41170662,2915.9,2915.5,1.2377]
[1644647027594,0.40644103,2915.8,2915.5,1.2377]
[1644647027793,0.001,2916.0,2915.5,1.2377]
[1644647027995,0.40750376,2916.0,2915.5,1.2377]
[1644647028397,0.86616386,2915.3,2915.0,2.33519347]
[1644647028797,0.1725,2915.6,2915.0,2.34429527]
[1644647028999,0.43202946,2915.5,2915.0,2.34429527]
[1644647029398,0.60352946,2915.4,2915.0,2.34429527]
[1644647029697,0.001,2915.7,2914.6,1.1922]
[1644647029899,0.79650918,2915.5,2914.7,1.87341374]
[1644647030097,0.79650918,2915.5,2914.7,0.86427504]
[1644647030098,1.65449918,2915.5,2914.7,0.86427504]
[1644647030344,1.65449918,2915.5,2914.6,1.1922]
[1644647030345,0.001,2915.4,2914.6,1.1922]
[1644647030637,0.001,2915.4,2914.7,1.00912405]
[1644647030836,3.2274,2915.9,2914.7,1.00912405]
[1644647030837,1.43197779,2915.7,2914.7,1.00912405]
[1644647031139,0.001,2915.6,2914.7,1.00912405]
[1644647031337,4.94327,2915.9,2914.7,1.00912405]
[1644647031338,1.43182787,2915.8,2914.7,1.00912405]
[1644647031536,0.43182787,2915.7,2914.6,1.1922]
[1644647031736,0.60332787,2915.7,2914.9,0.64310452]
[1644647031939,0.43082787,2915.6,2914.9,0.64310452]
[1644647032148,0.43082787,2915.6,2915.0,4.35103998]
[1644647032149,0.001,2915.6,2915.0,4.35103998]
[1644647032348,0.00654729,2916.0,2915.1,1.00876165]
[1644647032547,0.00654729,2916.0,2915.2,4.60625786]
[1644647032746,0.00654729,2916.0,2915.3,1.00876165]
[1644647032949,0.00654729,2916.0,2915.5,0.85751]
[1644647033247,0.98572359,2917.0,2915.7,0.80198651]
[1644647033448,0.001,2916.9,2915.7,0.80198651]
[1644647033751,0.00880452,2916.0,2915.7,0.80198651]
[1644647034389,0.1713,2916.4,2915.7,0.80198651]
[1644647034593,1.001,2917.0,2915.7,0.80198651]
[1644647034594,0.85768,2916.6,2915.7,0.80198651]
[1644647034794,0.00880475,2916.0,2915.7,0.80950815]
[1644647034994,0.00880475,2916.0,2915.8,3.38213805]
[1644647035196,0.1713,2917.0,2915.9,0.495]
[1644647035393,0.2565,2917.2,2916.0,3.82599255]
[1644647035594,0.43083547,2917.1,2916.0,4.87099255]
[1644647035794,0.60213547,2917.1,2916.1,1.71464]
[1644647035996,0.43083547,2917.0,2916.1,1.71464]
[1644647036196,0.1713,2916.9,2916.0,0.745]
[1644647036397,0.1713,2916.9,2916.1,0.495]
[1644647036398,0.43083547,2916.8,2916.1,0.495]
[1644647036597,0.43083547,2916.8,2916.2,0.00219979]
[1644647036796,0.1713,2917.1,2916.2,0.00219979]
[1644647036797,0.1713,2917.1,2916.4,0.70899907]
[1644647036997,0.43089062,2917.0,2916.5,0.00219979]
[1644647037196,0.00654863,2916.6,2916.5,0.00219979]
[1644647037396,0.00654863,2916.6,2916.4,0.70899907]
[1644647037850,0.00654863,2916.6,2916.5,3.89230046]
[1644647038047,0.001,2916.7,2916.5,6.78868506]
[1644647038245,0.001,2916.7,2916.6,3.3967281]
[1644647038445,0.001,2916.7,2916.6,3.5680281]
[1644647038846,0.001,2916.7,2916.6,0.1713]
[1644647040050,0.001,2916.7,2916.6,3.50785713]
[1644647040350,0.001,2916.7,2916.5,0.49719979]
[1644647040948,0.001,2916.7,2916.6,3.38200626]
[1644647041149,0.81901467,2918.0,2916.6,12.26226812]
[1644647041360,0.43107903,2917.9,2916.7,2.8447]
[1644647041600,0.43107903,2917.9,2917.1,5.0]
[1644647041789,0.0008,2918.0,2917.2,1.795]
[1644647041989,0.0008,2918.0,2917.9,0.75548125]
[1644647042189,0.0008,2918.0,2917.4,0.8568773]
[1644647042190,0.0008,2918.0,2917.6,0.495]
[1644647042689,0.43183719,2918.0,2917.6,0.495]
[1644647042893,0.43103719,2917.9,2917.6,0.495]
[1644647043092,0.41603719,2917.8,2917.6,0.495]
[1644647043291,0.0008,2918.0,2917.6,1.16421855]
[1644647043894,0.0008,2918.0,2917.6,0.495]
[1644647044296,0.1713,2917.9,2917.2,5.1336]
[1644647044494,0.1713,2917.9,2917.2,1.1784]
[1644647044893,1.02859,2917.9,2917.2,1.1784]
[1644647045343,0.81485567,2917.4,2917.2,1.1784]
[1644647045535,0.88725304,2916.7,2916.3,1.15246424]
[1644647045736,0.88725304,2916.7,2916.5,0.8572276]
[1644647046135,0.88725304,2916.7,2916.4,2.39030145]
[1644647046338,0.88725304,2916.7,2916.5,0.6664]
[1644647046642,0.88725304,2916.7,2916.6,0.75605045]
[1644647046839,0.88725304,2916.7,2916.6,1.25105045]
[1644647047639,0.88725304,2916.7,2916.6,0.495]
[1644647048843,0.88725304,2916.7,2916.6,1.217599]
[1644647049492,0.88725304,2916.7,2916.6,0.495]
[1644647049690,0.88725304,2916.7,2916.3,0.00756424]
[1644647050097,0.88725304,2916.7,2915.9,1.2145]
[1644647050098,0.1713,2916.6,2915.9,1.2145]
[1644647050297,0.1723,2916.6,2915.9,1.2145]
[1644647050497,0.1723,2916.6,2916.3,0.00756424]
[1644647050498,0.71156147,2916.4,2916.3,0.00756424]
[1644647050696,0.1723,2916.6,2916.3,0.00756424]
[1644647051401,0.1713,2916.5,2916.1,0.00219983]
[1644647051596,0.1713,2916.5,2916.3,0.00756424]
[1644647052599,0.1713,2916.5,2915.9,1.2145]
[1644647052844,0.1713,2916.5,2916.3,0.00756424]
[1644647053840,0.001,2916.5,2915.9,1.2145]
[1644647054042,4.28725304,2916.7,2916.3,0.00756424]
[1644647054043,0.001,2916.6,2916.3,0.00756424]
[1644647054240,0.001,2916.6,2916.4,0.495]
[1644647054639,0.001,2916.6,2916.4,0.795]
[1644647055040,0.001,2916.6,2916.4,1.65234]
[1644647055441,0.001,2916.6,2916.5,0.75615118]
[1644647055641,0.001,2916.6,2916.5,1.25115118]
[1644647055842,8.192e-05,2916.7,2916.6,3.25]
[1644647056041,0.1713,2917.9,2916.8,3.4]
[1644647056243,0.1713,2917.9,2917.1,0.85712]
[1644647056441,0.1713,2917.9,2917.2,0.495]
[1644647056442,1.00484928,2917.9,2917.2,0.495]
[1644647056686,1.00484928,2917.9,2917.3,0.495]
[1644647056989,0.1713,2917.8,2917.3,0.495]
[1644647057188,0.64691467,2917.8,2917.3,0.495]
[1644647057387,0.64691467,2917.7,2917.3,0.495]
[1644647057585,0.00653543,2917.7,2917.3,0.495]
[1644647057786,0.1713,2917.6,2917.3,0.495]
[1644647058190,0.1713,2917.6,2916.7,1.1987]
[1644647058390,0.1713,2917.6,2916.8,0.495]
[1644647058391,0.85390511,2917.4,2916.8,0.495]
[1644647058793,0.00880389,2917.3,2916.8,0.495]
[1644647059791,3.4,2917.6,2916.8,0.495]
[1644647059992,0.00653389,2917.2,2916.9,0.8572]
[1644647060191,0.00653389,2917.2,2916.9,0.495]
[1644647060637,0.00653389,2917.2,2916.7,1.1987]
[1644647060839,3.5713,2917.6,2916.7,1.1987]
[1644647061037,0.001,2917.5,2916.7,1.1987]
[1644647061237,0.00653389,2917.1,2916.7,1.1987]
[1644647061535,0.00653389,2917.1,2916.8,0.00219955]
[1644647062139,0.1713,2917.4,2916.8,0.00219955]
[1644647062336,0.00653389,2917.1,2916.8,0.00219955]
[1644647063341,0.1713,2917.4,2916.8,0.00219955]
[1644647063541,0.001,2917.5,2916.8,0.00219955]
[1644647063542,0.00880911,2917.1,2916.8,0.00219955]
[1644647064388,0.38513061,2917.0,2916.8,0.00219955]
[1644647064891,0.00880911,2917.1,2916.7,0.00760199]
[1644647065187,0.39597218,2917.0,2916.7,0.00980154]
[1644647065587,0.39597218,2917.0,2916.7,0.0043835]
[1644647065888,0.39597218,2917.0,2916.7,0.00219955]
[1644647066086,0.00880904,2917.0,2916.7,0.00980154]
[1644647066886,0.1713,2917.6,2916.7,0.00219955]
[1644647067087,0.38672649,2917.5,2916.7,0.00219955]
[1644647067489,0.38672649,2917.4,2917.0,0.82351491]
[1644647067686,0.38672649,2917.3,2917.0,0.82351491]
[1644647067942,0.38672649,2917.2,2917.0,0.82351491]
[1644647068242,0.38672649,2917.1,2917.0,0.82351491]
[1644647068640,0.38672649,2917.2,2917.0,0.82351491]
[1644647069539,0.001,2917.8,2917.0,0.82351491]
[1644647069742,0.008809,2917.2,2917.0,0.82351491]
[1644647069939,0.008809,2917.2,2916.8,0.495]
[1644647069940,0.38664659,2917.1,2916.8,0.495]
[1644647070340,0.008809,2917.2,2916.8,0.495]
[1644647070539,0.81821467,2917.9,2916.8,0.495]
[1644647070742,0.38665032,2917.8,2916.8,0.495]
[1644647070943,0.38765032,2917.8,2916.8,0.495]
[1644647071241,0.38765032,2917.8,2917.1,0.66322211]
[1644647071242,3.4,2917.2,2917.1,0.66322211]
[1644647071445,3.78765032,2917.2,2917.1,0.66322211]
[1644647071688,3.78765032,2917.2,2916.8,0.495]
[1644647071987,0.001,2917.1,2916.8,1.35222]
[1644647072386,0.001,2917.1,2916.9,0.3]
[1644647072586,0.001,2917.1,2917.0,0.495]
[1644647073591,0.001,2917.1,2917.0,1.22557431]
[1644647074794,0.38525287,2917.1,2917.0,2.28855337]
[1644647077240,0.38525287,2917.1,2917.0,1.22557431]
[1644647078046,0.38525287,2917.1,2917.0,2.29457183]
[1644647079485,0.38525287,2917.1,2917.0,2.29464042]
[1644647082187,3.40880904,2917.2,2917.1,3.15]
[1644647082388,0.64691467,2917.8,2917.2,2.45]
[1644647082590,0.64691467,2918.1,2917.3,8.34060929]
[1644647082853,1.43202931,2918.7,2918.0,0.71863995]
[1644647082854,0.81821467,2918.5,2918.0,0.71863995]
[1644647083046,0.64691467,2918.5,2918.1,0.495]
[1644647083249,0.64691467,2918.5,2918.2,0.495]
[1644647083444,0.64691467,2918.5,2918.3,0.495]
[1644647083646,0.81839085,2918.4,2917.7,3.60121145]
[1644647083846,0.64709085,2918.5,2917.8,0.495]
[1644647084046,0.1713,2918.4,2917.8,0.495]
[1644647084446,0.1713,2918.4,2918.0,0.72558848]
[1644647084747,0.1713,2918.4,2918.1,0.495]
[1644647084945,0.1713,2918.4,2918.2,0.495]
[1644647085146,0.64709085,2918.6,2918.3,0.495]
[1644647085147,0.1713,2918.5,2918.3,0.495]
[1644647085445,0.1713,2918.5,2917.7,0.3]
[1644647085446,0.1713,2918.5,2918.4,0.495]
[1644647085646,0.1713,2918.5,2918.4,0.23888303]
[1644647085849,0.81839085,2918.5,2918.4,0.23888303]
[1644647086046,0.64709085,2918.5,2918.4,0.23888303]
[1644647086247,0.1713,2918.5,2918.4,0.23888303]
[1644647087103,0.82719879,2918.6,2918.4,0.23888303]
[1644647087317,0.81839085,2918.6,2918.4,0.23888303]
[1644647087704,0.64709085,2918.5,2918.4,0.23888303]
[1644647087908,0.1801079,2918.6,2918.4,0.23888303]
[1644647088109,0.81742097,2918.5,2918.4,0.23888303]
[1644647088808,0.18010794,2918.6,2918.4,0.23888303]
[1644647089008,0.64587991,2918.5,2918.4,0.23888303]
[1644647090441,0.82698785,2918.6,2918.4,0.23888303]
[1644647090940,0.64587991,2918.5,2918.0,0.495]
[1644647092442,0.0088081,2918.4,2918.0,0.495]
[1644647093046,0.0098081,2918.4,2918.0,0.495]
[1644647093447,0.001,2918.4,2918.0,0.495]
[1644647093649,0.00880814,2918.3,2918.0,0.495]
[1644647094687,0.001,2918.4,2918.0,0.495]
[1644647094889,0.00880818,2918.3,2918.0,0.495]
[1644647095289,0.65468809,2918.3,2918.0,0.495]
[1644647095688,0.00880818,2918.3,2918.0,0.495]
[1644647095890,0.001,2918.4,2918.0,0.495]
[1644647096090,0.00880818,2918.3,2918.0,0.495]
[1644647097089,0.001,2918.4,2918.0,0.495]
[1644647097289,0.00880818,2918.3,2918.0,0.495]
[1644647098143,0.001,2918.4,2918.0,0.495]
[1644647098542,0.00880818,2918.3,2918.0,0.495]
[1644647099342,0.001,2918.4,2918.0,0.495]
[1644647099743,0.00880818,2918.3,2918.0,0.495]
[1644647100543,0.001,2918.4,2918.0,0.495]
[1644647100942,0.00880818,2918.3,2918.0,0.495]
[1644647101788,0.65468809,2918.3,2918.0,0.495]
[1644647101987,0.64687991,2918.4,2918.0,0.495]
[1644647102189,0.00880818,2918.3,2918.0,0.495]
[1644647102388,0.35230376,2918.2,2918.0,0.495]
[1644647103192,0.35230376,2918.1,2918.0,0.495]
[1644647104495,0.00855153,2918.2,2918.0,0.495]
[1644647104794,0.35230376,2918.1,2918.0,0.495]
[1644647105640,0.35230376,2918.1,2917.6,5.17267371]
[1644647105837,0.35230376,2918.0,2917.7,0.495]
[1644647106038,0.35230376,2917.9,2917.7,0.495]
[1644647106238,0.35230376,2917.8,2917.7,0.795]
[1644647106438,0.35230376,2917.8,2917.7,1.91793396]
[1644647107239,0.35230376,2917.8,2917.7,0.495]
[1644647107945,0.35230376,2917.8,2917.7,1.35197]
[1644647109191,0.35230376,2917.8,2917.7,2.47536564]
[1644647109389,0.35230376,2917.8,2917.7,2.77536564]
[1644647110689,0.35230376,2917.8,2917.7,1.65197]
[1644647111290,0.35230376,2917.8,2917.7,1.35197]
[1644647112290,0.35230376,2917.8,2917.7,0.495]
[1644647114348,0.35230376,2917.8,2917.7,1.62117755]
[1644647114548,0.35230376,2917.8,2917.7,0.495]
[1644647116349,0.35230376,2917.8,2917.7,1.62148531]
[1644647117199,0.35230376,2917.8,2917.7,0.495]
[1644647117399,0.35230376,2917.8,2917.7,1.6217888]
[1644647118004,0.35230376,2917.8,2917.7,0.495]
[1644647118805,0.35230376,2917.8,2917.7,1.62215326]
[1644647119609,3.75230376,2917.8,2917.7,1.62215326]
[1644647119804,3.75330376,2917.8,2917.7,1.62215326]
[1644647120747,3.75330376,2917.8,2917.7,0.495]
[1644647122347,3.75330376,2917.8,2917.7,1.62260428]
[1644647124898,3.75330376,2917.8,2917.7,0.495]
[1644647125698,3.75330376,2917.8,2917.5,0.5108041]
[1644647125898,0.35330376,2917.7,2917.6,1.63971859]
[1644647143158,0.99918367,2917.7,2917.6,1.63971859]
[1644647143353,4.50098531,2917.7,2917.6,1.14471859]
[1644647143553,0.99918367,2917.7,2917.3,1.14471859]
[1644647143752,0.64866266,2917.5,2917.4,1.15378484]
[1644647144152,1.00196642,2917.5,2917.0,1.15378484]
[1644647144352,0.64866266,2917.4,2917.1,1.15278484]
[1644647144552,0.64866266,2917.4,2916.8,0.00621232]
[1644647144553,0.64866266,2917.3,2916.8,0.00621232]
[1644647144952,3.85379002,2917.5,2916.8,0.00621232]
[1644647144953,4.23943029,2917.2,2916.8,0.00621232]
[1644647145453,0.64866266,2917.2,2916.8,0.00621232]
[1644647145856,0.64866266,2917.2,2916.8,0.00362768]
[1644647145857,1.35875887,2917.2,2916.8,0.00362768]
[1644647146252,1.35875887,2917.2,2916.5,0.00219955]
[1644647146692,0.64866266,2917.2,2916.5,0.00219955]
[1644647146892,0.64866266,2917.2,2916.7,0.85726]
[1644647147095,0.81996266,2917.3,2916.7,0.85726]
[1644647147293,0.64866266,2917.3,2916.7,0.85726]
[1644647147492,0.64866266,2917.3,2916.5,1.17149955]
[1644647147493,0.64866266,2917.3,2916.6,0.00219955]
[1644647147693,1.39984799,2917.3,2916.6,0.00219955]
[1644647147898,4.12831382,2917.2,2916.6,0.00219955]
[1644647148097,0.64866266,2917.1,2916.6,0.00219955]
[1644647148402,0.64866266,2917.1,2916.3,0.00219955]
[1644647148403,0.64866266,2916.8,2916.3,0.00219955]
[1644647148598,0.64866266,2916.6,2916.0,0.00219955]
[1644647148797,4.54223823,2916.5,2916.0,0.00219955]
[1644647149200,0.1713,2916.4,2916.0,0.00219955]
[1644647149396,0.1713,2916.4,2915.5,0.00219955]
[1644647150199,0.1713,2916.4,2915.8,0.00760635]
[1644647151053,0.1713,2916.4,2915.5,0.00219955]
[1644647151349,0.1713,2916.4,2916.0,0.00760596]
[1644647151751,3.5713,2916.4,2916.0,0.00760596]
[1644647151950,3.48922708,2916.3,2916.0,0.00760596]
[1644647152352,3.48922708,2916.3,2915.5,0.00219955]
[1644647152555,3.5713,2916.4,2916.0,0.00760583]
[1644647152854,3.4,2916.4,2916.0,0.00760583]
[1644647153461,3.4,2916.4,2915.5,0.00219955]
[1644647153659,3.4,2916.4,2915.6,0.1713]
[1644647153861,3.4,2916.4,2916.1,0.0076057]
[1644647153862,3.62535637,2916.3,2916.1,0.0076057]
[1644647154095,4.39665637,2916.3,2916.1,0.0076057]
[1644647154295,3.46262711,2916.2,2916.1,0.0076057]
[1644647154495,4.46262711,2916.2,2916.1,0.0076057]
[1644647154697,4.46262711,2916.2,2915.3,0.00219955]
[1644647154897,0.7774771,2915.9,2915.3,0.00219955]
[1644647155096,0.7774771,2915.9,2915.6,0.03042789]
[1644647155699,0.7774771,2915.9,2915.0,0.00219955]
[1644647155700,6.9,2915.8,2915.0,0.00219955]
[1644647155900,5.0,2915.7,2915.0,0.00219955]
[1644647156098,1.0295971,2915.6,2915.0,0.00219955]
[1644647156697,0.83650194,2915.1,2915.0,0.00219955]
[1644647156901,0.83650194,2915.1,2914.6,0.00219955]
[1644647157100,0.1715,2915.0,2914.0,0.00219955]
[1644647158551,1.0296528,2915.0,2914.4,0.00751738]
[1644647158750,3.50567599,2914.9,2914.4,0.00751738]
[1644647159353,1.0,2914.8,2914.4,0.00751738]
[1644647159552,1.0,2914.8,2914.0,0.00219955]
[1644647159553,0.858276,2914.6,2914.0,0.00219955]
[1644647159752,3.93633864,2914.7,2914.1,0.03007249]
[1644647159753,0.66089254,2914.3,2914.1,0.03007249]
[1644647160154,0.1715,2914.2,2914.1,0.03007249]
[1644647160352,3.70159103,2914.2,2914.1,0.03007249]
[1644647160554,3.75267326,2914.2,2914.1,0.03007249]
[1644647160755,3.75267326,2914.2,2912.9,2.33638441]
[1644647160756,0.81260159,2913.5,2912.9,2.33638441]
[1644647161356,0.3,2913.4,2912.9,2.33638441]
[1644647161605,0.81260159,2913.5,2912.9,2.33638441]
[1644647161801,1.0,2913.9,2912.1,7.46]
[1644647161802,0.85858,2913.6,2912.1,7.46]
[1644647162002,5.6467303,2914.3,2912.1,7.46]
[1644647162003,0.1716,2914.1,2912.2,2.37005006]
[1644647162202,5.2716,2914.2,2912.2,2.86505006]
[1644647162504,5.2716,2914.2,2912.3,1.2303]
[1644647162505,1.0,2914.1,2912.3,1.2303]
[1644647162803,0.1716,2914.0,2912.5,0.8583931]
[1644647163006,0.1716,2914.0,2912.9,1.52956918]
[1644647163207,3.73335751,2914.0,2912.9,1.52956918]
[1644647163407,3.73335751,2914.0,2913.1,0.00742854]
[1644647164407,3.73335751,2914.0,2912.8,2.21161]
[1644647164607,0.1716,2914.0,2913.4,0.00742778]
[1644647164907,3.58723205,2914.0,2913.4,0.00742778]
[1644647165449,3.58723205,2914.0,2912.8,0.495]
[1644647165850,4.44572205,2914.0,2913.6,0.0074274]
[1644647166049,3.66702279,2914.0,2913.6,0.0074274]
[1644647166249,3.5716,2914.1,2913.6,0.0074274]
[1644647166650,3.5716,2914.1,2912.8,0.795]
[1644647166651,3.54400101,2914.0,2912.8,0.795]
[1644647166857,0.1716,2913.9,2912.8,0.795]
[1644647167051,0.1716,2913.9,2913.7,0.00742701]
[1644647167250,4.25842,2914.1,2913.7,0.00742701]
[1644647167251,3.4,2914.1,2913.7,0.00742701]
[1644647167852,1.84280232,2914.1,2913.5,0.495]
[1644647168054,1.84280232,2914.1,2913.6,1.35304]
[1644647168355,1.84280232,2914.1,2913.8,0.00742689]
[1644647168554,1.84280232,2914.1,2913.9,0.495]
[1644647169403,1.84280232,2914.1,2913.9,0.50242663]
[1644647170404,1.84280232,2914.1,2913.9,0.495]
[1644647170607,1.84280232,2914.1,2913.9,0.50242663]
[1644647171012,1.84280232,2914.1,2913.9,0.80242663]
[1644647171609,1.84280232,2914.1,2913.9,0.795]
[1644647171811,1.84280232,2914.1,2913.9,0.80242663]
[1644647172856,0.1715,2915.1,2914.1,0.58339768]
[1644647173055,0.00880106,2914.2,2914.1,0.58339768]
[1644647173253,0.00880106,2914.2,2914.1,1.54989768]
[1644647173454,1.06e-06,2914.2,2914.1,1.54989768]
[1644647173655,1.06e-06,2914.2,2914.1,12.74089768]
[1644647173858,0.1715,2915.1,2914.1,13.74089768]
[1644647174055,0.001,2915.7,2914.4,0.85779]
[1644647174056,0.1715,2915.6,2914.4,0.85779]
[1644647174255,0.1715,2915.6,2914.5,1.55122001]
[1644647174456,0.1715,2915.6,2914.5,2.55122001]
[1644647174858,0.1715,2915.6,2914.4,1.60901001]
[1644647175057,0.1715,2915.6,2914.6,0.3]
[1644647175359,0.1715,2915.6,2914.9,6.191]
[1644647175557,0.1715,2915.6,2915.0,0.495]
[1644647175857,0.1715,2915.6,2915.3,1.62247979]
[1644647176059,0.1715,2915.6,2915.4,0.495]
[1644647176594,0.18030021,2915.6,2915.4,0.4971916]
[1644647176999,0.18030021,2915.6,2915.4,1.3547716]
[1644647177702,0.1715,2915.6,2915.4,1.3547716]
[1644647177902,0.18030021,2915.6,2915.4,1.3547716]
[1644647178103,0.18030021,2915.6,2915.4,0.4971916]
[1644647178704,0.1715,2915.6,2915.4,0.4971916]
[1644647178902,0.1715,2915.6,2915.4,0.495]
[1644647179105,0.18030021,2915.6,2915.4,0.495]
[1644647179303,0.00880021,2915.6,2915.4,0.495]
[1644647179906,0.1723,2915.8,2915.4,0.495]
[1644647180112,0.001,2915.8,2915.4,0.495]
[1644647180348,0.8797091,2915.9,2915.4,0.495]
[1644647180349,0.00880021,2915.6,2915.4,0.495]
[1644647180943,0.00880021,2915.6,2915.4,1.65264]
[1644647181147,0.001,2916.5,2915.4,0.495]
[1644647181148,0.1713,2916.5,2915.4,0.495]
[1644647181447,0.00880021,2915.6,2915.4,0.495]
[1644647182447,0.1723,2916.0,2915.4,0.495]
[1644647182648,0.00880021,2915.6,2915.4,0.495]
[1644647183648,0.1723,2916.0,2915.4,0.495]
[1644647183849,0.00880021,2915.6,2915.4,0.495]
[1644647184691,0.85991303,2916.1,2915.4,0.495]
[1644647185092,0.00880021,2915.6,2915.4,0.495]
[1644647185895,0.1713,2916.2,2915.4,0.495]
[1644647186095,3.4,2915.6,2915.4,0.495]
[1644647186296,0.001,2915.5,2915.4,0.495]
[1644647188974,3.40880025,2915.6,2915.5,0.85822154]
[1644647189575,3.4,2915.6,2915.5,0.85822154]
[1644647189775,3.4,2915.6,2915.5,0.00060154]
[1644647190575,3.4,2915.6,2915.4,0.80824154]
[1644647190775,3.4,2915.6,2915.3,0.0021916]
[1644647191182,3.4,2915.6,2915.0,0.0021916]
[1644647191381,3.4,2915.6,2914.8,0.0021916]
[1644647191598,3.4,2915.6,2914.8,0.85781]
[1644647191599,0.28440298,2915.5,2914.8,0.85781]
[1644647191799,3.5715,2915.6,2914.9,0.0021916]
[1644647192201,3.4,2915.6,2914.9,0.0021916]
[1644647192507,3.4,2915.6,2914.9,0.8598616]
[1644647192508,0.00880048,2915.3,2914.9,0.8598616]
[1644647192905,0.00880048,2915.3,2915.0,1.15736639]
[1644647193107,0.00880048,2915.3,2915.1,1.8889316]
[1644647193305,3.4,2915.6,2915.2,1.95236639]
[1644647193508,3.4,2915.6,2915.3,0.1715]
[1644647193705,3.4,2915.6,2915.4,0.495]
[1644647194109,0.001,2916.3,2915.6,3.4]
[1644647194407,0.28478131,2916.6,2915.7,2.65208699]
[1644647194607,0.001,2917.0,2915.9,6.191]
[1644647194807,0.00879987,2916.1,2916.0,2.82338699]
[1644647195005,0.00879987,2916.1,2916.0,3.12338699]
[1644647195209,0.00879987,2916.1,2916.0,3.4035]
[1644647195454,0.00879987,2916.1,2916.0,3.2322]
[1644647195646,0.001,2917.0,2916.0,4.38920795]
[1644647195846,0.001,2917.0,2916.0,3.2322]
[1644647195847,0.00879979,2916.2,2916.0,3.2322]
[1644647196047,0.00879979,2916.2,2916.0,1.6322]
[1644647196248,0.00879979,2916.2,2916.0,2.2322]
[1644647196648,3.40879979,2916.2,2916.0,2.2322]
[1644647196847,3.4,2916.2,2916.1,0.85738]
[1644647197049,0.1713,2917.4,2916.2,0.1637]
[1644647197253,0.28465535,2917.3,2916.4,2.01424]
[1644647197452,0.58384647,2918.0,2916.6,3.0]
[1644647197650,0.1713,2917.7,2916.7,0.495]
[1644647197855,0.28314355,2917.9,2916.7,0.795]
[1644647197856,0.28314355,2917.6,2916.7,0.795]
[1644647198051,1.13271027,2917.5,2916.7,0.795]
[1644647198250,0.28314355,2917.4,2916.7,0.795]
[1644647199107,0.28314355,2917.4,2916.7,2.20931]
[1644647199502,0.45444355,2917.4,2916.7,2.20931]
[1644647199706,0.28314355,2917.3,2916.3,0.10254695]
[1644647199905,0.45444355,2917.2,2916.3,0.10254695]
[1644647200206,1.44956672,2917.5,2916.3,0.10254695]
[1644647200207,0.28314355,2917.1,2916.3,0.10254695]
[1644647200507,0.28314355,2917.1,2916.0,1.71476]
[1644647200508,0.94332751,2917.0,2916.0,1.71476]
[1644647200705,0.28314355,2916.9,2916.0,1.71476]
[1644647200903,0.02696103,2916.2,2916.0,1.71476]
[1644647201712,0.02696103,2916.2,2915.8,1.1657]
[1644647201906,0.02696103,2916.2,2916.0,0.00751368]
[1644647202305,0.02696103,2916.2,2915.5,3.74007289]
[1644647202705,0.02696103,2916.2,2915.5,4.59768289]
[1644647202949,0.1713,2916.1,2915.5,4.56762368]
[1644647203749,0.1713,2916.1,2915.5,0.85761]
[1644647204150,0.02696103,2916.2,2915.5,3.5]
[1644647204750,0.02696103,2916.2,2915.5,4.35761]
[1644647205554,0.02696103,2916.2,2915.7,0.00751314]
[1644647205754,0.03594803,2916.2,2915.7,0.00751314]
[1644647206452,0.03594803,2916.2,2915.5,3.5]
[1644647206704,0.03594803,2916.2,2915.8,0.00751288]
[1644647207103,3.43594803,2916.2,2915.8,0.00751288]
[1644647207706,3.43594803,2916.2,2915.7,3.5]
[1644647207908,3.43594803,2916.2,2915.9,0.00751275]
[1644647208208,3.43694803,2916.2,2915.9,0.00751275]
[1644647208533,3.43594803,2916.2,2915.9,0.00751275]
[1644647208908,3.43594803,2916.2,2915.7,3.5]
[1644647209110,0.00272353,2915.8,2915.7,3.5]
[1644647210744,3.408987,2916.2,2915.7,3.5]
[1644647210948,3.38967156,2916.2,2915.7,4.35749]
[1644647211152,3.38867156,2916.2,2915.7,4.35749]
[1644647211350,3.38867156,2916.2,2915.7,3.5]
[1644647211549,3.38867156,2916.2,2915.8,0.00751288]
[1644647212250,0.25951163,2916.1,2915.8,0.00751288]
[1644647212550,0.25951163,2916.1,2915.7,3.5]
[1644647212749,3.38867156,2916.2,2915.9,0.00751275]
[1644647212951,0.25954451,2916.1,2915.9,0.00751275]
[1644647213754,0.25954451,2916.1,2915.8,3.5]
[1644647213952,0.25954451,2916.1,2915.9,0.00751275]
[1644647214797,0.25954451,2916.1,2915.8,3.5]
[1644647215297,0.25954451,2916.1,2915.9,0.00751275]
[1644647215498,0.43084451,2916.1,2915.9,0.00751275]
[1644647215896,0.25954451,2916.0,2915.9,0.00751275]
[1644647216097,0.25954451,2916.0,2915.4,0.10257861]
[1644647216300,0.25954451,2916.0,2915.9,0.00751275]
[1644647217298,0.25954451,2916.0,2915.4,0.10257861]
[1644647217498,0.25954451,2916.0,2915.8,0.00704333]
[1644647218554,0.25954451,2915.9,2915.4,0.10257861]
[1644647218754,3.38867156,2916.2,2915.8,0.00704345]
[1644647218958,0.26006929,2916.1,2915.8,0.00704345]
[1644647219654,0.26006929,2916.1,2915.4,0.10257861]
[1644647219855,0.26006929,2916.1,2915.8,0.00704333]
[1644647220856,0.26006929,2916.1,2915.8,0.01675577]
[1644647221256,0.26006929,2916.1,2915.8,0.02273365]
[1644647222099,0.26006929,2916.1,2915.8,0.01675577]